bitfinex/quotes_ETHUSD_20250322
["timestamp","ask_amount","ask_price","bid_price","bid_amount"]
[1742686454175,0.2618293,1981.5,1981.4,26.681]
[1742686455375,9.61894288,1981.5,1981.4,26.681]
[1742686455577,10.40384288,1981.5,1981.4,26.681]
[1742686457776,5.35716288,1981.5,1981.4,26.681]
[1742686459557,10.40384288,1981.5,1981.4,26.681]
[1742686459880,11.94887017,1981.5,1981.4,26.681]
[1742686460278,5.83248,1981.2,1980.9,26.682]
[1742686460487,0.26120352,1981.1,1980.9,26.682]
[1742686460677,15.19056358,1981.2,1980.9,26.682]
[1742686460882,9.61932548,1981.1,1980.9,29.855045]
[1742686461085,9.61932548,1981.1,1980.9,26.682]
[1742686461482,4.57159548,1981.1,1980.9,26.682]
[1742686462591,4.57159548,1981.1,1980.4,5.04937]
[1742686462592,5.04855,1980.8,1980.4,5.04937]
[1742686462791,5.04885,1980.7,1980.3,31.93061]
[1742686462977,10.14431358,1980.6,1980.3,26.684]
[1742686463176,15.19353358,1980.6,1980.3,26.684]
[1742686463359,5.04926,1980.5,1980.3,26.684]
[1742686463557,10.0987,1980.5,1980.3,26.684]
[1742686463785,0.25962172,1980.4,1980.3,26.684]
[1742686463985,5.30910172,1980.4,1980.3,26.684]
[1742686464997,10.4044353,1980.4,1980.3,26.684]
[1742686468200,5.04999,1980.2,1979.7,31.93607]
[1742686468401,14.41062358,1980.2,1979.7,31.93607]
[1742686468605,0.25412568,1980.1,1979.7,35.634829]
[1742686468995,14.41062358,1980.2,1979.7,35.634829]
[1742686469170,0.25412568,1980.0,1979.7,35.634829]
[1742686469367,14.41062358,1980.2,1979.7,35.634829]
[1742686469609,0.25412568,1979.9,1979.7,35.634829]
[1742686469793,5.05061,1980.0,1979.7,30.583759]
[1742686469998,0.25412568,1979.8,1979.7,26.688]
[1742686470196,10.18214358,1980.0,1979.7,26.688]
[1742686470373,0.25325081,1979.8,1979.7,26.688]
[1742686470777,10.18214358,1980.0,1979.7,26.688]
[1742686470978,5.30426081,1979.8,1979.7,26.688]
[1742686471178,11.70531394,1980.0,1979.7,26.688]
[1742686471401,0.25325081,1979.8,1979.7,26.688]
[1742686471594,10.18207358,1980.0,1979.7,26.688]
[1742686472089,0.25325081,1979.9,1979.7,26.688]
[1742686472407,0.25325081,1979.9,1979.7,31.73921]
[1742686472613,0.25325081,1979.9,1979.7,26.688]
[1742686475101,5.30403081,1979.9,1979.7,26.688]
[1742686475611,5.05101,1979.8,1979.7,26.688]
[1742686475925,5.30205281,1979.8,1979.7,26.688]
[1742686476123,6.12315281,1979.8,1979.7,26.688]
[1742686480236,5.05152,1979.6,1979.0,5.24988]
[1742686480540,1.07010072,1979.5,1979.3,5.05224]
[1742686480707,0.24900072,1979.5,1979.3,5.24924]
[1742686481028,3.8211,1979.9,1979.5,5.05164]
[1742686481209,0.8211,1979.9,1979.6,5.05152]
[1742686481409,0.8211,1979.9,1979.4,31.75495]
[1742686481609,5.87205,1979.9,1979.4,26.703]
[1742686481817,5.05102,1979.8,1979.4,26.703]
[1742686482333,5.05131,1979.7,1979.4,26.703]
[1742686483028,5.05142,1979.7,1979.4,26.703]
[1742686484104,10.10294,1979.7,1979.4,26.703]
[1742686484400,5.05142,1979.7,1979.4,26.703]
[1742686484738,5.05153,1979.6,1979.4,26.703]
[1742686485035,5.05178,1979.5,1979.4,26.703]
[1742686485235,5.85843,1979.6,1979.4,26.703]
[1742686485734,10.91006,1979.6,1979.4,26.703]
[1742686486338,5.05178,1979.5,1979.4,26.703]
[1742686489538,0.8069,1979.6,1979.4,26.703]
[1742686489741,10.10274,1979.7,1979.4,26.703]
[1742686490243,5.05157,1979.6,1979.4,26.703]
[1742686490944,0.8069,1979.8,1979.4,31.95192]
[1742686491164,5.05119,1979.8,1979.4,26.9]
[1742686491314,10.10242,1979.8,1979.4,26.9]
[1742686491841,5.05119,1979.8,1979.4,31.95203]
[1742686492142,5.0509,1979.9,1979.5,5.05163]
[1742686492347,10.10189,1979.9,1979.5,5.05163]
[1742686492514,5.05102,1979.8,1979.4,35.147133]
[1742686492716,5.0505,1980.1,1979.7,5.24808]
[1742686492948,10.10092,1980.1,1979.7,5.24808]
[1742686493144,5.05052,1980.0,1979.7,0.197]
[1742686494957,0.22630375,1979.9,1979.7,0.197]
[1742686495557,0.22630375,1979.9,1979.8,4.31043358]
[1742686495715,10.09979,1980.3,1979.8,9.36144358]
[1742686495925,10.09979,1980.3,1979.8,9.36124358]
[1742686495926,0.22672161,1979.9,1979.8,9.36124358]
[1742686496266,0.22672161,1979.9,1979.7,6.20411436]
[1742686496461,5.05034,1980.1,1979.7,6.20411436]
[1742686496666,0.22672161,1980.0,1979.7,11.25518436]
[1742686497124,0.22672161,1980.0,1979.8,5.05099]
[1742686497640,10.10034,1980.2,1979.8,5.05099]
[1742686497864,0.22672161,1980.1,1979.8,5.05099]
[1742686498160,5.05017,1980.2,1979.8,5.05099]
[1742686498335,0.22672161,1980.0,1979.8,5.05099]
[1742686498536,5.05017,1980.2,1979.8,6.60752679]
[1742686498727,0.22672161,1979.9,1979.8,5.05099]
[1742686498919,5.05017,1980.2,1979.8,10.10185]
[1742686499118,0.22701409,1979.9,1979.8,5.05086]
[1742686499324,5.05017,1980.2,1979.8,5.05086]
[1742686499553,0.22701409,1979.9,1979.8,5.05086]
[1742686499738,5.05017,1980.2,1979.8,5.05086]
[1742686499952,0.22701409,1979.9,1979.8,5.05086]
[1742686500159,5.05017,1980.2,1979.8,6.60740279]
[1742686500472,5.05017,1980.2,1979.8,5.05086]
[1742686500632,0.22701409,1980.1,1979.8,5.05086]
[1742686500824,0.7658,1980.1,1979.7,1.15287436]
[1742686501137,5.27760409,1980.0,1979.7,0.197]
[1742686503365,5.27760409,1980.0,1979.7,5.24823]
[1742686503566,0.22701409,1980.0,1979.8,5.05097]
[1742686504247,0.22701409,1980.0,1979.7,5.24821]
[1742686506985,0.22701409,1980.0,1979.8,5.0509]
[1742686507478,5.27763409,1980.0,1979.7,1.029971]
[1742686507774,5.27763409,1980.0,1979.6,5.05138]
[1742686508581,5.27763409,1980.0,1979.6,10.10272]
[1742686508985,0.22701409,1980.0,1979.7,5.0512]
[1742686509278,0.22701409,1980.0,1979.7,5.05114]
[1742686509479,0.22701409,1980.0,1979.8,5.05101]
[1742686510281,0.22701409,1980.0,1979.8,5.24801]
[1742686510483,0.22701409,1980.0,1979.8,6.32823062]
[1742686510683,10.92587,1980.3,1979.9,5.05076]
[1742686511701,5.87591,1980.3,1979.9,5.0506]
[1742686511898,5.05012,1980.2,1979.8,6.277875]
[1742686512102,5.05012,1980.2,1979.8,11.328755]
[1742686512305,5.05012,1980.2,1979.8,1.226915]
[1742686512458,5.05028,1980.1,1979.8,0.197]
[1742686512659,5.05028,1980.1,1979.8,26.901]
[1742686513003,5.05028,1980.1,1979.8,31.95199]
[1742686513206,5.05012,1980.2,1979.8,31.95199]
[1742686514712,5.87584,1980.3,1979.9,5.05063]
[1742686514873,3.7882,1980.5,1979.9,8.01068158]
[1742686515080,3.7882,1980.5,1980.2,5.0498]
[1742686515389,10.88583,1980.7,1980.3,5.04966]
[1742686515570,0.7882,1980.7,1980.3,5.04966]
[1742686515902,5.83701,1980.7,1980.3,15.47515855]
[1742686516061,10.0971,1980.8,1980.4,5.24641]
[1742686516494,5.04848,1980.8,1980.4,5.24641]
[1742686516700,10.09714,1980.8,1980.4,5.24641]
[1742686517308,10.09715,1980.8,1980.4,5.24641]
[1742686517476,10.09715,1980.8,1980.4,6.41362338]
[1742686517477,5.04872,1980.7,1980.4,6.41362338]
[1742686517961,5.04848,1980.8,1980.4,6.41362338]
[1742686518301,0.7882,1980.9,1980.6,5.04874]
[1742686518497,8.04803,1981.0,1980.6,5.04874]
[1742686518676,5.04803,1981.0,1980.6,10.09761]
[1742686518878,5.04803,1981.0,1980.6,11.53841436]
[1742686519059,5.04803,1981.0,1980.6,6.48954436]
[1742686519773,10.14636358,1981.1,1980.7,5.24568]
[1742686519774,5.83593,1981.1,1980.7,5.24568]
[1742686519971,10.88384,1981.1,1980.7,5.24568]
[1742686520397,5.04796,1981.0,1980.7,0.197]
[1742686521269,5.04796,1981.0,1980.7,3.47145638]
[1742686522098,5.83593,1981.1,1980.7,3.47145638]
[1742686522313,5.09863358,1980.8,1980.2,0.197]
[1742686522464,5.04932,1980.5,1980.2,0.197]
[1742686523795,10.09875,1980.5,1980.2,0.197]
[1742686523993,5.04954,1980.4,1980.0,9.55792358]
[1742686524379,0.7882,1980.5,1980.0,0.197]
[1742686524583,5.05008,1980.2,1979.9,26.698]
[1742686524767,5.0498,1980.3,1979.9,26.698]
[1742686524968,0.7882,1980.7,1980.3,5.04949]
[1742686525169,5.83657,1980.9,1980.3,9.55692358]
[1742686525363,10.09725,1980.8,1980.4,6.00506236]
[1742686525601,5.04872,1980.7,1980.4,0.95569236]
[1742686526301,10.09768,1980.7,1980.4,0.95569236]
[1742686526494,10.09768,1980.7,1980.3,9.55692358]
[1742686526799,5.04872,1980.7,1980.4,5.04946]
[1742686527008,5.04853,1980.8,1980.4,5.04946]
[1742686527303,5.04853,1980.8,1980.3,9.55692358]
[1742686527470,5.04876,1980.7,1980.3,14.60654358]
[1742686527666,5.04876,1980.7,1980.4,1.46065436]
[1742686528102,9.35976358,1980.5,1980.1,0.197]
[1742686528299,5.04988,1980.3,1979.9,31.94564]
[1742686528501,9.35967358,1980.5,1979.9,31.94564]
[1742686528502,5.04953,1980.4,1980.0,3.194564]
[1742686528913,5.04979,1980.3,1980.0,3.194564]
[1742686530208,5.05006,1980.2,1979.9,26.895]
[1742686532106,5.81429,1980.3,1979.9,26.895]
[1742686532313,10.86424,1980.3,1979.9,31.94574]
[1742686532523,5.81429,1980.3,1979.9,31.94574]
[1742686532806,0.3716291,1980.2,1979.9,31.94574]
[1742686533013,0.3716291,1980.2,1979.9,35.645412]
[1742686535621,0.3716291,1980.2,1979.9,30.594672]
[1742686536117,0.3716291,1980.2,1979.9,35.645412]
[1742686537283,0.3716291,1980.2,1980.1,5.24724]
[1742686537489,5.04908,1980.6,1980.2,5.04986]
[1742686537696,0.3716291,1980.5,1980.3,5.04973]
[1742686537900,8.86388,1980.8,1980.4,9.55691358]
[1742686537901,5.04858,1980.8,1980.4,9.55691358]
[1742686538097,5.04828,1980.9,1980.5,5.04921]
[1742686538420,5.8628,1981.2,1980.8,5.24531]
[1742686538614,10.91046,1981.2,1980.8,5.24531]
[1742686538816,5.04771,1981.1,1980.8,5.24531]
[1742686539221,5.04771,1981.1,1980.8,0.197]
[1742686540025,0.37347486,1981.0,1980.8,0.197]
[1742686540526,5.42144486,1981.0,1980.8,0.197]
[1742686540721,0.8153,1980.8,1980.0,0.197]
[1742686540927,5.04965,1980.4,1980.0,0.197]
[1742686541418,0.37473286,1980.3,1980.0,0.197]
[1742686541914,0.37473286,1980.2,1979.9,5.05056]
[1742686542319,0.37473286,1980.2,1979.9,9.36099358]
[1742686542520,0.8153,1980.5,1980.1,5.05024]
[1742686542882,5.86456,1980.5,1980.1,5.05024]
[1742686543219,10.91402,1980.5,1980.1,5.05024]
[1742686543540,5.04949,1980.4,1980.0,5.98655936]
[1742686543924,5.86456,1980.5,1980.0,11.03681936]
[1742686544320,5.04926,1980.5,1980.2,0.197]
[1742686544495,5.85043,1980.7,1980.3,5.04956]
[1742686545421,13.89819,1980.9,1980.3,4.31043358]
[1742686545724,5.04847,1980.8,1980.4,5.04936]
[1742686546083,5.04847,1980.8,1980.4,5.04926]
[1742686546285,5.84981,1980.9,1980.5,5.04913]
[1742686546508,5.04796,1981.0,1980.6,26.697]
[1742686546701,5.04796,1981.0,1980.6,31.74589]
[1742686546900,10.09612,1981.0,1980.6,31.74589]
[1742686547794,10.09612,1981.0,1980.6,26.697]
[1742686548535,5.04822,1980.9,1980.6,26.697]
[1742686548823,5.04851,1980.8,1980.6,26.697]
[1742686549031,5.85032,1980.7,1980.6,26.697]
[1742686550797,11.16992158,1980.9,1980.6,26.697]
[1742686551056,5.04866,1980.8,1980.6,26.697]
[1742686551201,5.04872,1980.7,1980.6,26.697]
[1742686552032,9.35915358,1980.7,1980.6,26.697]
[1742686552228,5.04872,1980.7,1980.6,26.697]
[1742686552433,11.17049158,1980.7,1980.6,26.697]
[1742686553022,6.860058,1980.7,1980.6,26.697]
[1742686553227,11.17049158,1980.7,1980.6,26.697]
[1742686553634,11.17049158,1980.7,1979.9,5.24772]
[1742686553635,5.04991,1980.3,1979.9,5.24772]
[1742686553931,5.04991,1980.3,1979.2,26.696]
[1742686553932,5.05166,1979.6,1979.2,26.696]
[1742686554117,5.05218,1979.4,1979.2,26.696]
[1742686554316,5.05229,1979.3,1979.2,26.696]
[1742686554915,9.60044071,1979.3,1979.2,26.696]
[1742686556069,0.23771713,1979.3,1979.2,26.696]
[1742686556242,0.23771713,1979.3,1979.2,29.3656]
[1742686556618,5.05229,1979.3,1979.2,29.3656]
[1742686556818,5.28488798,1979.3,1979.2,26.696]
[1742686557038,0.23259798,1979.3,1979.2,26.696]
[1742686557839,4.54303156,1979.3,1978.9,5.05324]
[1742686558027,0.23259798,1979.3,1978.9,5.05316]
[1742686558238,0.23259798,1979.3,1978.8,9.36387358]
[1742686558417,8.85341,1979.5,1979.0,5.05287]
[1742686558617,0.23259798,1979.2,1979.0,0.197]
[1742686558934,0.23259798,1979.1,1979.0,0.197]
[1742686559121,5.05204,1979.4,1979.0,0.147]
[1742686559437,0.23259798,1979.1,1979.0,5.20005]
[1742686559640,5.87094,1979.7,1979.0,5.57639432]
[1742686559842,0.504991,1980.2,1979.2,4.31043358]
[1742686559843,5.05107,1979.8,1979.2,4.31043358]
[1742686560041,5.05107,1979.8,1979.3,31.75708]
[1742686560455,5.05098,1979.9,1979.3,41.11966358]
[1742686560661,0.8195,1980.0,1979.5,5.05174]
[1742686560957,5.05059,1980.0,1979.5,9.36217358]
[1742686561141,5.05059,1980.0,1979.5,11.03960736]
[1742686561440,5.05002,1980.2,1979.5,0.93621736]
[1742686561640,8.05002,1980.2,1979.6,5.05137]
[1742686562153,5.05038,1980.1,1979.6,5.19837]
[1742686562381,5.05002,1980.2,1979.7,5.05122]
[1742686562543,10.10026,1980.2,1979.7,5.0511]
[1742686562879,5.05028,1980.1,1979.7,5.0511]
[1742686563069,5.05028,1980.1,1979.6,5.19852]
[1742686563262,5.05071,1980.0,1979.6,1.65032359]
[1742686563464,5.05071,1980.0,1979.6,0.147]
[1742686564255,5.05028,1980.1,1979.6,5.19852]
[1742686564437,10.10069,1980.1,1979.6,5.19852]
[1742686564642,5.05028,1980.1,1979.7,5.05126]
[1742686564843,5.86939,1980.3,1979.7,5.571086]
[1742686564844,5.05001,1980.2,1979.7,5.571086]
[1742686565044,5.86926,1980.3,1979.8,5.05076]
[1742686565244,5.04976,1980.3,1979.8,5.05076]
[1742686565667,8.04951,1980.4,1979.9,5.05071]
[1742686565872,13.09915,1980.4,1979.9,5.05071]
[1742686566180,5.04978,1980.3,1979.8,5.05098]
[1742686566744,5.05,1980.2,1979.7,5.570856]
[1742686567268,5.05026,1980.1,1979.7,0.519826]
[1742686568589,5.05026,1980.1,1979.8,26.705]
[1742686568882,5.8155,1980.2,1979.8,26.705]
[1742686569383,10.86564,1980.2,1979.8,26.705]
[1742686569759,5.28354832,1980.1,1979.8,26.705]
[1742686571186,0.23326832,1980.1,1979.8,26.705]
[1742686571482,5.05028,1980.1,1979.8,26.705]
[1742686571684,0.23326832,1980.0,1979.8,26.705]
[1742686571888,0.23326832,1980.0,1979.8,29.9326076]
[1742686572586,10.86563,1980.2,1979.8,29.9326076]
[1742686572787,0.23326832,1979.9,1979.8,29.9326076]
[1742686572956,10.86563,1980.2,1979.8,29.9326076]
[1742686573157,0.23326832,1979.9,1979.8,29.9326076]
[1742686573355,10.86563,1980.2,1979.8,29.9326076]
[1742686573599,0.23326832,1979.9,1979.8,29.9326076]
[1742686573952,5.05029,1980.1,1979.8,29.9326076]
[1742686574194,5.28402832,1979.9,1979.8,26.705]
[1742686574389,10.10121,1980.0,1979.8,26.705]
[1742686574690,5.28402832,1979.9,1979.8,26.705]
[1742686576157,6.11302832,1979.9,1979.8,26.705]
[1742686576410,7.22938315,1979.9,1979.8,26.705]
[1742686576763,5.05203,1979.5,1979.2,26.705]
[1742686576962,5.05213,1979.4,1979.2,26.705]
[1742686577187,5.28363545,1979.4,1979.2,26.705]
[1742686577709,10.33587545,1979.4,1979.2,26.705]
[1742686578005,5.05229,1979.3,1979.2,26.705]
[1742686578375,0.23150545,1979.3,1979.2,26.705]
[1742686578776,5.28379545,1979.3,1979.2,26.705]
[1742686579383,0.23150545,1979.3,1979.2,26.705]
[1742686581311,5.28379545,1979.3,1979.2,26.705]
[1742686581492,0.23150545,1979.3,1979.2,26.705]
[1742686582807,5.28379545,1979.3,1979.2,26.705]
[1742686583308,6.317388,1979.3,1979.2,26.705]
[1742686586125,5.05385,1978.7,1978.4,0.1174849]
[1742686586283,5.05308,1979.0,1978.4,5.45927995]
[1742686586488,0.22965783,1978.6,1978.5,0.147]
[1742686586689,5.05366,1978.8,1978.5,0.147]
[1742686587170,5.28352783,1978.7,1978.5,0.147]
[1742686587374,10.33754783,1978.7,1978.5,0.147]
[1742686587571,5.05413,1978.6,1978.4,4.43793317]
[1742686587999,0.22965783,1978.5,1978.4,4.43793317]
[1742686588199,5.28398783,1978.5,1978.4,0.1174849]
[1742686590600,7.08499961,1978.5,1978.4,0.1174849]
[1742686591003,1.26346961,1978.5,1978.4,0.1174849]
[1742686591190,5.28398783,1978.5,1978.4,0.1174849]
[1742686591726,0.22965783,1978.5,1978.4,9.49251317]
[1742686591903,0.22965783,1978.5,1978.4,4.43793317]
[1742686592107,5.05359,1978.8,1978.4,4.43793317]
[1742686592313,0.2033723,1978.5,1978.4,4.43793317]
[1742686592509,5.05392,1978.7,1978.4,4.43793317]
[1742686592711,0.2033723,1978.5,1978.4,4.43793317]
[1742686592914,5.05392,1978.7,1978.4,4.43793317]
[1742686593092,0.2033723,1978.5,1978.4,4.43793317]
[1742686593299,5.05357,1978.8,1978.4,9.63932317]
[1742686593484,0.2033723,1978.5,1978.4,5.3188749]
[1742686593816,5.2577023,1978.5,1978.4,0.1174849]
[1742686594024,6.36562353,1978.5,1978.4,0.1174849]
[1742686594994,10.6860718,1978.5,1978.4,0.1174849]
[1742686596302,10.6860718,1978.5,1977.2,0.2645]
[1742686596303,0.7672,1978.1,1977.2,0.2645]
[1742686596595,0.20240335,1978.0,1977.8,5.05601]
[1742686596810,5.05497,1978.3,1977.9,5.05586]
[1742686597007,0.20240335,1977.9,1977.7,5.05637]
[1742686597324,0.7672,1978.0,1977.6,26.718]
[1742686597487,0.20240335,1977.8,1977.7,5.05637]
[1742686597687,9.8075931,1978.2,1977.6,26.718]
[1742686598023,5.05546,1978.1,1977.7,10.11272]
[1742686598222,0.20164493,1978.1,1977.7,5.05622]
[1742686598421,0.20164493,1978.1,1977.9,5.0558]
[1742686598721,0.20164493,1978.1,1977.9,5.05574]
[1742686598912,0.20164493,1978.1,1978.0,5.05561]
[1742686599116,0.7672,1978.3,1978.0,5.05561]
[1742686599406,0.7672,1978.3,1978.1,5.05514]
[1742686599590,0.20164493,1978.2,1978.1,5.05514]
[1742686599792,5.35344534,1978.4,1978.1,5.05514]
[1742686600001,0.20164493,1978.2,1978.0,5.05558]
[1742686600232,0.53534453,1978.3,1978.0,10.11101]
[1742686600528,0.20164493,1978.1,1978.0,5.05543]
[1742686600831,0.20164493,1978.1,1978.0,5.05542]
[1742686601145,0.53534453,1978.3,1978.1,5.05535]
[1742686601329,0.53534453,1978.3,1978.1,10.11056]
[1742686601631,5.35344534,1978.4,1978.1,5.05521]
[1742686602127,15.46290534,1978.4,1978.0,5.05559]
[1742686602429,5.05486,1978.3,1977.9,10.11161]
[1742686602928,5.05486,1978.3,1978.0,5.0556]
[1742686604231,5.05486,1978.3,1977.9,10.1115]
[1742686604533,6.60116253,1978.3,1977.9,10.1115]
[1742686605702,6.60116253,1978.3,1977.9,5.05574]
[1742686606635,6.60116253,1978.3,1977.9,10.11147]
[1742686606811,1.54630253,1978.3,1978.0,5.05547]
[1742686607332,1.54630253,1978.3,1978.1,5.05533]
[1742686607734,5.35344534,1978.4,1978.1,5.05521]
[1742686608038,5.35344534,1978.4,1978.1,10.11047]
[1742686608642,5.35344534,1978.4,1978.1,5.05521]
[1742686610002,10.40808534,1978.4,1978.1,5.05521]
[1742686610405,5.35344534,1978.4,1978.1,5.05521]
[1742686611152,10.40806534,1978.4,1978.1,5.05521]
[1742686611704,5.35344534,1978.4,1978.1,5.05518]
[1742686611924,5.35344534,1978.4,1978.1,31.78218]
[1742686612636,1.03299707,1978.4,1978.1,26.727]
[1742686612838,0.7652,1978.7,1978.4,5.05448]
[1742686613339,0.7652,1978.7,1978.5,5.0542]
[1742686613636,10.13898827,1978.9,1978.5,5.0542]
[1742686613938,15.19247827,1978.9,1978.5,5.0542]
[1742686614144,5.05367,1978.8,1978.4,5.05456]
[1742686614301,5.05392,1978.7,1978.3,10.10949]
[1742686614507,9.37436827,1978.7,1978.3,5.05467]
[1742686614844,2.32168478,1978.9,1978.2,5.31957]
[1742686614845,0.18447738,1978.6,1978.2,0.2645]
[1742686615021,5.81861,1978.9,1978.5,5.05423]
[1742686615218,0.16979726,1978.8,1978.6,5.05398]
[1742686615818,0.16979726,1978.8,1978.7,5.05382]
[1742686616342,13.13851827,1979.1,1978.7,5.05382]
[1742686616523,0.17017787,1978.8,1978.7,5.05382]
[1742686616718,13.13851827,1979.1,1978.7,5.05382]
[1742686616919,0.17017787,1978.8,1978.7,5.05382]
[1742686617134,1.31385183,1979.0,1978.7,5.05382]
[1742686617314,0.17017787,1978.8,1978.6,5.05398]
[1742686617509,5.05307,1979.0,1978.7,5.05382]
[1742686618226,0.8258,1979.4,1979.0,5.05282]
[1742686618546,0.8258,1979.4,1978.6,5.31841]
[1742686618547,9.37279827,1979.3,1978.9,31.77921]
[1742686618744,5.05235,1979.3,1978.9,31.77921]
[1742686619653,5.05235,1979.3,1978.9,36.83233]
[1742686620152,5.05231,1979.3,1978.9,31.77912]
[1742686620314,5.87804,1979.4,1979.0,5.053]
[1742686620515,6.89788883,1979.4,1979.0,5.053]
[1742686621052,11.95006883,1979.4,1979.0,5.053]
[1742686622045,10.10473,1979.3,1978.9,31.77912]
[1742686622215,5.0523,1979.3,1978.9,31.77912]
[1742686623961,6.89768883,1979.4,1979.0,5.05292]
[1742686624344,8.05153,1979.6,1979.1,5.05259]
[1742686624649,8.87733,1979.6,1979.2,5.05248]
[1742686624821,8.87733,1979.6,1979.1,5.05272]
[1742686624822,5.05179,1979.5,1979.1,5.05272]
[1742686625328,5.05179,1979.5,1979.2,5.05253]
[1742686625525,6.48324196,1979.5,1979.2,5.05253]
[1742686625713,6.48324196,1979.5,1979.1,5.05273]
[1742686626316,6.48324196,1979.5,1979.1,10.1054]
[1742686626530,6.48324196,1979.5,1979.0,5.31748]
[1742686627147,4.32044827,1979.2,1978.9,31.77908]
[1742686627352,10.3928601,1979.2,1978.9,31.77908]
[1742686627554,5.3403201,1979.2,1978.9,31.77908]
[1742686627736,1.01987183,1979.2,1978.9,31.77908]
[1742686629558,1.01987183,1979.2,1978.9,36.83228]
[1742686629757,1.01987183,1979.2,1978.9,36.83227]
[1742686630048,0.16049304,1979.1,1979.0,5.05305]
[1742686630260,12.36108196,1979.5,1979.0,5.05305]
[1742686630444,0.16049304,1979.4,1979.1,10.10534]
[1742686630632,0.16049304,1979.4,1979.1,5.05264]
[1742686632627,0.16049304,1979.4,1979.1,5.05279]
[1742686632828,0.90745654,1979.4,1979.1,5.05279]
[1742686633023,5.95949654,1979.4,1979.0,10.10593]
[1742686633243,5.95949654,1979.4,1979.0,5.05288]
[1742686633628,5.95949654,1979.4,1979.0,10.10582]
[1742686633923,5.95949654,1979.4,1978.9,31.77926]
[1742686633924,5.05233,1979.3,1978.9,31.77926]
[1742686634162,0.8115,1979.2,1978.9,31.77926]
[1742686634466,6.0247127,1979.2,1978.9,26.726]
[1742686634766,0.9721627,1979.2,1978.9,26.726]
[1742686634965,0.1606627,1979.2,1978.9,31.77918]
[1742686635269,0.1606627,1979.2,1979.0,5.31748]
[1742686635565,6.6105535,1979.4,1979.0,10.37043]
[1742686635864,0.66105535,1979.3,1979.0,5.31745]
[1742686636167,0.16057949,1979.2,1979.0,10.3704]
[1742686636562,0.16057949,1979.2,1979.0,10.37033]
[1742686636762,6.6105535,1979.4,1979.0,5.31738]
[1742686636937,6.6105535,1979.4,1978.9,31.77931]
[1742686636938,0.16057949,1979.1,1978.9,31.77931]
[1742686637135,1.43145196,1979.5,1978.9,34.75618527]
[1742686637368,0.8115,1979.6,1979.3,5.0521]
[1742686637603,5.05377,1978.8,1978.1,0.2645]
[1742686637812,0.8115,1978.6,1978.1,5.05514]
[1742686638100,15.24047827,1978.6,1977.9,5.05575]
[1742686638303,10.18615827,1978.6,1978.0,5.05559]
[1742686638594,5.86571,1978.6,1978.0,5.05547]
[1742686638908,5.05449,1978.5,1977.8,36.09431827]
[1742686639111,0.8115,1978.4,1977.9,5.05585]
[1742686639405,0.8115,1978.4,1977.8,31.77387]
[1742686639406,5.05485,1978.3,1977.8,26.718]
[1742686639702,6.07352983,1978.3,1977.8,26.718]
[1742686639904,5.0554,1978.1,1977.8,26.718]
[1742686640054,0.8115,1978.0,1977.8,26.718]
[1742686640255,5.86716,1978.0,1977.8,26.718]
[1742686641900,5.05586,1977.9,1977.8,26.718]
[1742686643097,0.8115,1978.0,1977.8,33.71024827]
[1742686643284,3.0,1978.8,1977.8,38.76618827]
[1742686643285,0.8115,1978.3,1977.8,38.76618827]
[1742686643471,5.86636,1978.3,1977.8,43.82210827]
[1742686643681,5.86635,1978.3,1977.8,38.76616827]
[1742686643872,5.05522,1978.2,1977.8,26.718]
[1742686644067,10.11056,1978.2,1977.8,26.718]
[1742686644274,5.05549,1978.1,1977.8,26.718]
[1742686645098,5.05564,1978.0,1977.8,26.718]
[1742686645285,10.11107,1978.1,1977.8,26.718]
[1742686645593,10.11096,1978.1,1977.8,26.718]
[1742686645761,11.122056,1978.1,1977.8,26.718]
[1742686645961,6.066566,1978.1,1977.8,26.718]
[1742686646212,5.05547,1978.1,1977.8,26.718]
[1742686646382,10.11037,1978.2,1977.8,26.718]
[1742686646595,5.05512,1978.2,1977.8,26.718]
[1742686647290,0.8115,1978.3,1978.0,5.05557]
[1742686647482,10.8877,1978.5,1978.0,5.05557]
[1742686647684,2.29941483,1978.5,1978.1,5.05525]
[1742686647882,5.05404,1978.7,1978.3,5.05483]
[1742686648066,10.88657,1978.7,1978.2,5.05485]
[1742686648264,5.83253,1978.7,1978.2,5.05485]
[1742686648489,5.83253,1978.7,1978.2,10.10981]
[1742686648889,5.83253,1978.7,1978.3,5.05477]
[1742686649091,6.415783,1978.7,1978.3,5.05477]
[1742686649599,6.415783,1978.7,1978.2,10.10984]
[1742686649765,6.415783,1978.7,1978.3,5.05481]
[1742686650159,0.7786,1978.7,1978.4,5.05436]
[1742686650364,0.7786,1978.9,1978.3,4.58494827]
[1742686650581,0.7786,1978.9,1978.6,5.05405]
[1742686650795,5.8314,1979.1,1978.6,31.78105]
[1742686650995,6.919814,1979.1,1978.6,31.78105]
[1742686651296,6.919814,1979.1,1978.7,5.05382]
[1742686651601,1.867014,1979.1,1978.7,9.37426827]
[1742686651898,0.7786,1979.1,1978.7,14.42808827]
[1742686652302,0.7786,1979.1,1978.7,9.37426827]
[1742686652468,0.7786,1979.1,1978.7,14.42798827]
[1742686652669,0.7786,1979.1,1978.8,5.05356]
[1742686652870,0.7786,1979.1,1978.7,14.42785827]
[1742686653297,0.7786,1979.1,1978.8,5.05353]
[1742686653502,0.7786,1979.1,1978.9,5.05331]
[1742686653681,0.7786,1979.1,1978.8,5.05343]
[1742686653998,0.7786,1979.1,1978.9,5.05329]
[1742686654204,5.8309,1979.3,1978.9,5.05329]
[1742686654580,5.8309,1979.3,1978.8,10.10685]
[1742686654806,5.8309,1979.3,1978.8,11.87383829]
[1742686654970,10.88335,1979.3,1978.8,6.82040829]